{"text_format":"1","workbook":"xlsx","n_sheets":15,"sheets":["Journal","Offen","Budget","Bilanz","F_Artikel","Appell","V_Anlass","Aktive","Passive","Gönner","Inserenten","Sponsoren","Quittung","Val","Color"],"not_rendered":{"charts":0,"images":3,"macros":1,"external_links":0,"defined_names":137,"comments":6,"pivot_tables":0},"unopened":[],"bounds":{"document_bytes":16777216,"sheet_cells":100000,"rows_first":2000,"rows_last":500,"rows_between":2000,"halvings":0,"cell_chars":16384,"cell_head_chars":4096},"cells_cut":0,"cells_raw":0,"read":"whole","date_system":"1900"}

{"sheet":"Journal","index":0,"n_rows":22,"n_cols":17,"rows_kept":22,"cut":false,"hidden":false,"merged":[[2,7,2,8],[2,1,2,2],[0,1,0,3]]}
[null,{"$f":"Vereinsname","v":"Musikgesellschaft X"},null,null,"Periode",{"$f":"Buchungsperiode","v":"01.01.2022-31.12.2022"},null,null,null,10,11,12,13,14,15,16,17]
[{"$f":" \"Erfolgskonto \" & BuchungsJahr","v":"Erfolgskonto 2022"},null,null,null,null,{"$f":"TODAY()","v":"2023-01-02"},null,"20220041",null,"Zahlkonto"]
["Analyse","Buchungssatz",null,{"$f":"SUM(J3:Q3)-SUM(J5:Q5)","v":-1468.5999984741211},"1900-01-17",{"$f":"CONCATENATE(\"Buchführung : \",Buchführung)","v":"Buchführung : Bucher Fritz"},null,"Konto Saldi >","Aus-",1116.5,5341.1000015258787,2745.8,559.4,2650,1200,10000,9380]
["Budgetposition","Soll (von)","(an) Haben","Betrag","wann","Vorgang","Typ","BelegNr","PM","Raiffeisen","Kasse V","Post","Kasse Fest","Kasse PW","Kasse Fa","Kasse U","UBS"]
["Kontoeröffnung","Übertrag","Übertrag",0,"01.04.2020","Abschluss Vorjahr.","XX",20220001,"E+",2347.5,3778.7,2745.8,559.4,3000,1200,10000,10830]
["Betrieb übriges","Kasse V","Kreditor",234.19999694824219,"29.04.2022","Medien","OU","20220007","-",null,-234.19999694824219]
["Passivmitgliederbeiträge*","Debi-Rechnung","Raiffeisen",20,"04.05.2022","Muster Michael Bremgarten","PP","20220008","+",20]
["Passivmitgliederbeiträge*","Debi-Rechnung","Raiffeisen",40,"04.05.2022","Muster Sonja Wohlerauen","PP","20220009","+",40]
["Passivmitgliederbeiträge*","Debi-Rechnung","Raiffeisen",30,"04.05.2022","Muster André Tegerig","PP","20220010","+",30]
["Notenbeschaffung","Raiffeisen","Kreditor",578,"05.05.2022","Noteneinkauf","OU","20220011","-",-578]
["Mietausgaben","Raiffeisen","Kredi-Rechnung",600,"05.05.2022","Lokalmiete","OU","20220012","-",-600]
["Instumente","Raiffeisen","Kreditor",143,"05.05.2022","Reperatur Instrumente","OU","20220014","-",-143]
["Artikelverkauf*","Verkauf","Kasse V",7,"04.05.2022","Becher Keramik","AV2","20220017","+",null,7]
["Artikelverkauf*","Verkauf","Kasse V",89.599998474121094,"05.05.2022","Schaal","AV2","20220018","+",null,89.599998474121094]
["Aktivmitgliederbeiträge*","Mitgliederbeitrag","Kasse V",100,"14.12.2022","Aktiver Tobi Thun","PA","20220019","+",null,100]
["Auftrittsgagen","Gage","Kasse V",1200,"14.12.2022","Auftrittsgage","EI","20220021","+",null,1200]
["Proben A","Kasse PW","Barzahlung",350,"15.12.2022","Lokalmiete","OU","20220022","-",null,null,null,null,-350]
["Reisekosten A","UBS","Kredi-Rechnung",1450,"29.12.2022","Car Reisen Surber","OU","20220030","-",null,null,null,null,null,null,null,-1450]
["Aktivmitgliederbeiträge*","Mitgliederbeitrag","Kasse V",100,"30.12.2022","Küttel Martin Interlaken","PA","20220032","+",null,100]
["Aktivmitgliederbeiträge*","Mitgliederbeitrag","Kasse V",100,"30.12.2022","Meier Hella Rümlingen","PA","20220033","+",null,100]
["Aktivmitgliederbeiträge*","Mitgliederbeitrag","Kasse V",100,"30.12.2022","Thomann Stefan  Bremervörde","PA","20220035","+",null,100]
["Aktivmitgliederbeiträge*","Mitgliederbeitrag","Kasse V",100,"30.12.2022","Müller Felix Lenzburg","PA","20220037","+",null,100]

{"sheet":"Offen","index":1,"n_rows":4,"n_cols":17,"rows_kept":4,"cut":false,"hidden":false,"merged":[]}
[null,"O-Buch",null,null,null,null,null,null,null,"Zahlkonto"]
["offene Kreditoren",0,0,"offene Debitoren",null,null,null,null,null,10,11,12,13,14,15,16,17]
["Budgetposition","Soll (von)","(an) Haben","Betrag","wann","Vorgang","Typ","BelegNr","PM",{"$f":"JourKt1","v":"Raiffeisen"},{"$f":"JourKt2","v":"Kasse V"},{"$f":"JourKt3","v":"Post"},{"$f":"JourKt4","v":"Kasse Fest"},{"$f":"JourKt5","v":"Kasse PW"},{"$f":"JourKt6","v":"Kasse Fa"},{"$f":"JourKt7","v":"Kasse U"},{"$f":"JourKt8","v":"UBS"}]
["Fest Bauten","Kasse Fest","Kredi-Rechnung",154,"05.05.2022","Transport","OU","20220016","-",null,null,null,-154]

{"sheet":"Budget","index":2,"n_rows":73,"n_cols":10,"rows_kept":73,"cut":false,"hidden":false,"merged":[[0,1,0,5],[3,6,3,7],[1,0,1,1],[84,0,85,0],[84,1,85,1],[84,2,85,2],[1,6,1,7],[1,3,1,5],[3,1,3,2],[3,3,3,5]]}
[null,{"$f":"\"Budget  \"  &  Vereinsname","v":"Budget  Musikgesellschaft X"},null,null,null,null,null,null,null,2]
[{"$f":"Buchungsperiode","v":"01.01.2022-31.12.2022"},null,"Buchführung:",{"$f":"Buchführung","v":"Bucher Fritz"},null,null,"aufdatiert am 02.01.2023"]
["Budgetdaten löschen"]
["Erfolgskonto","Abschluss",null,{"$f":"\"laufendes Budget  \"  &  BuchungsJahr","v":"laufendes Budget  2022"},null,null,"Kontovorwahl"]
["Budgetpositionen",{"$f":" BuchungsJahr-2","v":2020},{"$f":" BuchungsJahr-1","v":2021},"genehmigt","Ist","Restbudget","Soll","Haben"]
["Einnahmen - Ausgaben",{"$f":"B7-B37","v":3100},{"$f":"C7-C37","v":233},{"$f":"D7-D37","v":-3141},{"$f":"E7-E37","v":-1468.5999755859375},{"$f":"F7-F37","v":10876.400024414063}]
["Total Einnahmen",3100,883,12763,1886.5999755859375,{"$f":"D7-E7","v":10876.400024414063}]
["Beiträge",{"$f":"SUM(B9:B13)","v":0},{"$f":"SUM(C9:C13)","v":0},{"$f":"SUM(D9:D13)","v":4200},{"$f":"SUM(E9:E13)","v":540},{"$f":"D8-E8","v":3660}]
["Aktivmitgliederbeiträge*",0,0,3500,500,3000,"Mitgliederbeitrag","Kasse V"]
["Passivmitgliederbeiträge*",0,0,700,40,660,"Debi-Rechnung","Raiffeisen"]
["Sponsoren*",0,0,0,0,0,"Debi-Rechnung","Raiffeisen"]
["Uniform E",0,0,0,0,0,"Bareinnahme","Kasse V"]
["Bankzinsen",0,0,0,0,0,"Bareinnahme","Kasse V"]
["Spenden",{"$f":"SUM(B16:B17)","v":102.4},{"$f":"SUM(C16:C17)","v":106},{"$f":"SUM(D16:D17)","v":123},{"$f":"SUM(E16:E17)","v":50},{"$f":"D14-E14","v":73}]
["Gönner*",0,0,0,0,0,"Bareinnahme","Kasse V"]
["Private Spenden",102.4,86,123,0,123,"Bareinnahme","Kasse V"]
["Spenden übrige",0,20,0,50,-50,"Bareinnahme","Raiffeisen"]
["Auftritte, Anlässe",{"$f":"SUM(B20:B27)","v":583},{"$f":"SUM(C20:C27)","v":1334},{"$f":"SUM(D20:D27)","v":4950},{"$f":"SUM(E20:E27)","v":1296.5999984741211},{"$f":"SUM(F20:F27)","v":3653.4000015258789}]
["Proben",0,0,689,0,689,"Gage","Kasse V"]
["Auftrittsgagen",500,400,400,1200,-800,"Gage","Kasse V"]
["Anlassliste E",45,90,0,0,0,"Mitgliederbeitrag","Kasse V"]
["Artikelverkauf*",38,844,700,96.599998474121094,603.40000152587891,"Verkauf","Kasse V"]
["Vergütungen",0,0,200,0,200,"Spende","Kasse V"]
["Frühlingsfest E",0,0,0,0,0,"Bareinnahme","Kasse V"]
["Vereinsreise E",0,0,2500,0,2500,"Bareinnahme","Kasse V"]
["Musiktag E",0,0,100,0,100,"Debitor","Raiffeisen"]
["Anlasseinnahmen übrige",0,0,1050,0,1050,"Bareinnahme","Raiffeisen"]
["Fest Einnahmen",{"$f":"SUM(B29:B36)","v":580.29999999999995},{"$f":"SUM(C29:C36)","v":453.2},{"$f":"SUM(D29:D36)","v":18594},{"$f":"SUM(E29:E36)","v":0},{"$f":"SUM(F29:F36)","v":3490}]
["Fest Getränkebar E",0,0,500,0,500,"Bareinnahme","Kasse Fest"]
["Fest Trinkgeld",0,0,300,0,300,"Bareinnahme","Kasse Fest"]
["Fest Kaffeebar",380.3,453.2,400,0,400,"Bareinnahme","Kasse Fest"]
["Fest Artikelstand E",0,0,600,0,600,"Bareinnahme","Kasse Fest"]
["Fest Essensbon E",200,0,200,0,200,"Bareinnahme","Kasse Fest"]
["Fest Eintritte",0,0,450,0,450,"Bareinnahme","Kasse Fest"]
["Fest übrige Einnahmen",0,0,240,0,240,"Debitor","Kasse Fest"]
["Inserenten*",0,0,15904,0,800,"Debi-Rechnung","Raiffeisen"]
["Total Ausgaben",0,650,15904,3355.199951171875,0]
["Verwaltung",{"$f":"SUM(B39:B46)","v":0},{"$f":"SUM(C39:C46)","v":650},{"$f":"SUM(D39:D46)","v":3467},{"$f":"SUM(E39:E46)","v":600},2867]
["Ausbildner Entschädigung",0,0,787,0,787,"Raiffeisen","Kredi-Rechnung"]
["Ausbildungsmaterial",0,0,600,0,600,"Raiffeisen","Kredi-Rechnung"]
["Mietausgaben",0,0,700,600,100,"Raiffeisen","Kredi-Rechnung"]
["Büromaterial",0,0,150,0,150,"Kasse V","Barzahlung"]
["Porti Versand",0,0,300,0,300,"Kasse V","Barzahlung"]
["Spesen Vorstand",0,0,100,0,100,"Post","PostKarte"]
["Vereine/Verbände A",0,0,230,0,230,"Raiffeisen","Kreditor"]
["Hauptversammlung A",0,650,600,0,600,"Post","PostKarte"]
["Betrieb A",{"$f":"SUM(B48:B55)","v":0},{"$f":"SUM(C48:C55)","v":0},3737,955.19999694824219,2781.8000030517578]
["Uniform A",0,0,1300,0,1300,"Raiffeisen","Kredi-Rechnung"]
["Notenbeschaffung",0,0,467,578,-111,"Raiffeisen","Kreditor"]
["Instumente",0,0,400,143,257,"Raiffeisen","Kreditor"]
["Steuern",0,0,340,0,340,"Raiffeisen","Kreditor"]
["Versicherungen",0,0,380,0,380,"Raiffeisen","Kreditor"]
["Vergaben, Präsente",0,0,350,0,350,"Kasse V","Kreditor"]
["Bankspesen",0,0,200,0,200,"Raiffeisen","Kreditor"]
["Betrieb übriges",0,0,300,234.19999694824219,65.800003051757813,"Kasse V","Kreditor"]
["Auftritte Anlässe",{"$f":"SUM(B57:B64)","v":0},{"$f":"SUM(C57:C64)","v":0},{"$f":"SUM(D57:D64)","v":4940},1800,3140]
["Artikeleinkauf*",0,0,1200,0,1200,"Raiffeisen","Kreditor"]
["Reisekosten A",0,0,600,1450,-850,"Raiffeisen","Kreditor"]
["Verpflegungsspesen",0,0,300,0,300,"Post","PostKarte"]
["Frühlingsfest A",0,0,480,0,480,"Raiffeisen","Kreditor"]
["Proben A",0,0,360,350,10,"Kasse PW","Barzahlung"]
["Vereinsreise A",0,0,1200,0,1200,"Raiffeisen","Kreditor"]
["Musiktag A",0,0,500,0,500,"Kasse V","Kreditor"]
["übrige Anlassausgaben",0,0,300,0,300,"Kasse V","Kreditor"]
["Fest Ausgaben",{"$f":"SUM(B66:B73)","v":0},{"$f":"SUM(C66:C73)","v":0},{"$f":"SUM(D66:D73)","v":3760},0,3760]
["Fest Helferanlass",0,0,700,0,700,"Kasse Fest","Barzahlung"]
["Fest Bauten",0,0,400,0,400,"Kasse Fest","Kreditor"]
["Fest Wareneinkauf",0,0,700,0,700,"Kasse Fest","Kreditor"]
["Fest Abgaben, Mieten",0,0,350,0,350,"Post","Kreditor"]
["Fest Deko, Werbung",0,0,260,0,260,"Kasse Fest","Kreditor"]
["Fest Sicherheit, Schutz",0,0,450,0,450,"Kasse Fest","Kreditor"]
["Fest Medien, Kommunikation",0,0,500,0,500,"Kasse Fest","Kreditor"]
["Fest übrige Ausgaben",0,0,400,0,400,"Raiffeisen","Kredi-Rechnung"]

{"sheet":"Bilanz","index":3,"n_rows":40,"n_cols":11,"rows_kept":40,"cut":false,"hidden":false,"merged":[[0,7,0,10],[0,1,0,6],[26,3,26,4],[26,1,26,2],[1,0,1,4],[14,3,16,4],[1,6,1,10]]}
[null,{"$f":" CONCATENATE(Vereinsname, \" / \", Buchungsperiode)","v":"Musikgesellschaft X / 01.01.2022-31.12.2022"},null,null,null,null,null,"aufdatiert am 02.01.2023"]
[{"$f":" \"Bilanz \" & BuchungsJahr","v":"Bilanz 2022"},null,null,null,null,null,{"$f":" \"Erfolgsrechnung \" & BuchungsJahr","v":"Erfolgsrechnung 2022"}]
["Bilanzsumme in Fr.",{"$f":"B4+B18","v":36162.900021457674},null,"Bilanzsumme in Fr.",{"$f":"E5+E10","v":36162.900021457674},null,"Verlust",{"$f":"IF(K4<H4,H4-K4,0)","v":1468.5999755859375},null,"Gewinn",{"$f":"IF(K4>H4,K4-H4,0)","v":0}]
["Aktive",{"$f":"B5+B18","v":36162.900021457674},null,"Passive",{"$f":"E5+E10","v":36162.900021457674},null,{"$f":"Budget!A37","v":"Total Ausgaben"},{"$f":"Budget!E37","v":3355.199951171875},null,{"$f":"Budget!A7","v":"Total Einnahmen"},{"$f":"Budget!E7","v":1886.5999755859375}]
["Umlaufvermögen",{"$f":"SUM(B6:B17)","v":36162.900021457674},null,"Fremdkapital",{"$f":"SUM(E6:E9)","v":0},null,{"$f":"Budget!A38","v":"Verwaltung"},{"$f":"Budget!E38","v":600},null,{"$f":"Budget!A8","v":"Beiträge"},{"$f":"Budget!E8","v":540}]
[{"$f":"JourKt1","v":"Raiffeisen"},{"$f":"JourK1","v":1116.5},null,"offene Kreditoren",{"$f":"oKredi","v":0},null,{"$f":"Budget!A39","v":"Ausbildner Entschädigung"},{"$f":"Budget!E39","v":0},null,{"$f":"Budget!A9","v":"Aktivmitgliederbeiträge*"},{"$f":"Budget!E9","v":500}]
[{"$f":"JourKt2","v":"Kasse V"},{"$f":"JourK2","v":5341.1000015258787},null,"Rückstellungen",null,null,{"$f":"Budget!A40","v":"Ausbildungsmaterial"},{"$f":"Budget!E40","v":0},null,{"$f":"Budget!A10","v":"Passivmitgliederbeiträge*"},{"$f":"Budget!E10","v":40}]
[{"$f":"JourKt3","v":"Post"},{"$f":"JourK3","v":2745.8},null,"übriges Fremdkapital",0,null,{"$f":"Budget!A41","v":"Mietausgaben"},{"$f":"Budget!E41","v":600},null,{"$f":"Budget!A11","v":"Sponsoren*"},{"$f":"Budget!E11","v":0}]
[{"$f":"JourKt4","v":"Kasse Fest"},{"$f":"JourK4","v":559.4},null,"Rechnungsabgrenzung",0,null,{"$f":"Budget!A42","v":"Büromaterial"},{"$f":"Budget!E42","v":0},null,{"$f":"Budget!A12","v":"Uniform E"},{"$f":"Budget!E12","v":0}]
[{"$f":"JourKt5","v":"Kasse PW"},{"$f":"JourK5","v":2650},null,"Eigenkapital",{"$f":"SUM(E11:E13)","v":36162.900021457674},null,{"$f":"Budget!A43","v":"Porti Versand"},{"$f":"Budget!E43","v":0},null,{"$f":"Budget!A13","v":"Bankzinsen"},{"$f":"Budget!E13","v":0}]
[{"$f":"JourKt6","v":"Kasse Fa"},{"$f":"JourK6","v":1200},null,"Reinvermögen",{"$f":"B4-E13-E12-E5","v":37631.499997043611},null,{"$f":"Budget!A44","v":"Spesen Vorstand"},{"$f":"Budget!E44","v":0},null,{"$f":"Budget!A14","v":"Spenden"},{"$f":"Budget!E14","v":50}]
[{"$f":"JourKt7","v":"Kasse U"},{"$f":"JourK7","v":10000},null,"Rücklagen",0,null,{"$f":"Budget!A45","v":"Vereine/Verbände A"},{"$f":"Budget!E45","v":0},null,{"$f":"Budget!A15","v":"Gönner*"},{"$f":"Budget!E15","v":0}]
[{"$f":"JourKt8","v":"UBS"},{"$f":"JourK8","v":9380},null,"Erfolg (Gewinn oder Verlust)",{"$f":"IF(K3>H3,K3,H3*-1)","v":-1468.5999755859375},null,{"$f":"Budget!A46","v":"Hauptversammlung A"},{"$f":"Budget!E46","v":0},null,{"$f":"Budget!A16","v":"Private Spenden"},{"$f":"Budget!E16","v":0}]
["offene Debitoren",{"$f":"oDebi","v":0},null,null,null,null,{"$f":"Budget!A47","v":"Betrieb A"},{"$f":"Budget!E47","v":955.19999694824219},null,{"$f":"Budget!A17","v":"Spenden übrige"},{"$f":"Budget!E17","v":50}]
["übrige Vorderungen",0,null,"die gelb markierten Felder müssen manuell ausgefüllt werden",null,null,{"$f":"Budget!A48","v":"Uniform A"},{"$f":"Budget!E48","v":0},null,{"$f":"Budget!A18","v":"Auftritte, Anlässe"},{"$f":"Budget!E18","v":1296.5999984741211}]
["Warenlager",{"$f":"F_Artikel!G2","v":3170.1000199317932},null,null,null,null,{"$f":"Budget!A49","v":"Notenbeschaffung"},{"$f":"Budget!E49","v":578},null,{"$f":"Budget!A19","v":"Proben"},{"$f":"Budget!E19","v":0}]
["Rechnungsabgrenzung",0,null,null,null,null,{"$f":"Budget!A50","v":"Instumente"},{"$f":"Budget!E50","v":143},null,{"$f":"Budget!A20","v":"Auftrittsgagen"},{"$f":"Budget!E20","v":1200}]
["Anlagevermögen",{"$f":"SUM(B19:B22)","v":0},null,null,null,null,{"$f":"Budget!A51","v":"Steuern"},{"$f":"Budget!E51","v":0},null,{"$f":"Budget!A21","v":"Anlassliste E"},{"$f":"Budget!E21","v":0}]
["Immobilien",0,null,"Angaben für die Steuererklärung",null,null,{"$f":"Budget!A52","v":"Versicherungen"},{"$f":"Budget!E52","v":0},null,{"$f":"Budget!A22","v":"Artikelverkauf*"},{"$f":"Budget!E22","v":96.599998474121094}]
["Mobilien",0,null,"Verwaltungskosten",{"$f":"H6+H7+H8+H11+H9","v":600},null,{"$f":"Budget!A53","v":"Vergaben, Präsente"},{"$f":"Budget!E53","v":0},null,{"$f":"Budget!A23","v":"Vergütungen"},{"$f":"Budget!E23","v":0}]
["Instrumente",0,null,"Überschuss Mitgliederbeiträge",{"$f":"E22+K10-E20","v":-60},null,{"$f":"Budget!A54","v":"Bankspesen"},{"$f":"Budget!E54","v":0},null,{"$f":"Budget!A24","v":"Frühlingsfest E"},{"$f":"Budget!E24","v":0}]
["sonstige Vermögen",0,null,"Mitgliederbeiträge",{"$f":"K6+K7","v":540},null,{"$f":"Budget!A55","v":"Betrieb übriges"},{"$f":"Budget!E55","v":234.19999694824219},null,{"$f":"Budget!A25","v":"Vereinsreise E"},{"$f":"Budget!E25","v":0}]
[null,null,null,"Reingewinn",{"$f":"K3-K8-K9-K17","v":-1200},null,{"$f":"Budget!A56","v":"Auftritte Anlässe"},{"$f":"Budget!E56","v":1800},null,{"$f":"Budget!A26","v":"Musiktag E"},{"$f":"Budget!E26","v":0}]
[null,null,null,null,null,null,{"$f":"Budget!A57","v":"Artikeleinkauf*"},{"$f":"Budget!E57","v":0},null,{"$f":"Budget!A27","v":"Anlasseinnahmen übrige"},{"$f":"Budget!E27","v":0}]
["Die gewählten Revisoren bestätigen die Richtigkeit der Buchhaltung",null,null,null,null,null,{"$f":"Budget!A58","v":"Reisekosten A"},{"$f":"Budget!E58","v":1450},null,{"$f":"Budget!A28","v":"Fest Einnahmen"},{"$f":"Budget!E28","v":0}]
[{"$f":"CONCATENATE(\"Sie visieren die  Buchführung von  \",Buchführung)","v":"Sie visieren die  Buchführung von  Bucher Fritz"},null,null,null,null,null,{"$f":"Budget!A59","v":"Verpflegungsspesen"},{"$f":"Budget!E59","v":0},null,{"$f":"Budget!A29","v":"Fest Getränkebar E"},{"$f":"Budget!E29","v":0}]
["Name","Datum",null,"Unterschrift",null,null,{"$f":"Budget!A60","v":"Frühlingsfest A"},{"$f":"Budget!E60","v":0},null,{"$f":"Budget!A30","v":"Fest Trinkgeld"},{"$f":"Budget!E30","v":0}]
["Revisor(in) 1:",null,null,null,null,null,{"$f":"Budget!A61","v":"Proben A"},{"$f":"Budget!E61","v":350},null,{"$f":"Budget!A31","v":"Fest Kaffeebar"},{"$f":"Budget!E31","v":0}]
[{"$f":"Revisor1","v":"Revisor Arnold"},null,null,null,null,null,{"$f":"Budget!A62","v":"Vereinsreise A"},{"$f":"Budget!E62","v":0},null,{"$f":"Budget!A32","v":"Fest Artikelstand E"},{"$f":"Budget!E32","v":0}]
["Revisor(in) 2:",null,null,null,null,null,{"$f":"Budget!A63","v":"Musiktag A"},{"$f":"Budget!E63","v":0},null,{"$f":"Budget!A33","v":"Fest Essensbon E"},{"$f":"Budget!E33","v":0}]
[{"$f":"Revisor2","v":"Revisorin Bettina"},null,null,null,null,null,{"$f":"Budget!A64","v":"übrige Anlassausgaben"},{"$f":"Budget!E64","v":0},null,{"$f":"Budget!A34","v":"Fest Eintritte"},{"$f":"Budget!E34","v":0}]
["Revisor(in) 3:",null,null,null,null,null,{"$f":"Budget!A65","v":"Fest Ausgaben"},{"$f":"Budget!E65","v":0},null,{"$f":"Budget!A35","v":"Fest übrige Einnahmen"},{"$f":"Budget!E35","v":0}]
[{"$f":"Revisor3","v":" Revisor 3"},null,null,null,null,null,{"$f":"Budget!A66","v":"Fest Helferanlass"},{"$f":"Budget!E66","v":0},null,{"$f":"Budget!A36","v":"Inserenten*"},{"$f":"Budget!E36","v":0}]
["Revisor(in) 4:",null,null,null,null,null,{"$f":"Budget!A67","v":"Fest Bauten"},{"$f":"Budget!E67","v":0}]
[{"$f":"Revisor4","v":" Revisor 4"},null,null,null,null,null,{"$f":"Budget!A68","v":"Fest Wareneinkauf"},{"$f":"Budget!E68","v":0}]
[null,null,null,null,null,null,{"$f":"Budget!A69","v":"Fest Abgaben, Mieten"},{"$f":"Budget!E69","v":0}]
[null,null,null,null,null,null,{"$f":"Budget!A70","v":"Fest Deko, Werbung"},{"$f":"Budget!E70","v":0}]
[null,null,null,null,null,null,{"$f":"Budget!A71","v":"Fest Sicherheit, Schutz"},{"$f":"Budget!E71","v":0}]
[null,null,null,null,null,null,{"$f":"Budget!A72","v":"Fest Medien, Kommunikation"},{"$f":"Budget!E72","v":0}]
[null,null,null,null,null,null,{"$f":"Budget!A73","v":"Fest übrige Ausgaben"},{"$f":"Budget!E73","v":0}]

{"sheet":"F_Artikel","index":4,"n_rows":9,"n_cols":11,"rows_kept":9,"cut":false,"hidden":false,"merged":[[0,1,0,5]]}
[null,"Warenlager (Fan-Artikel)",null,null,null,null,7,8,9,10,11]
[null,null,null,null,null,"Summen",{"$f":"SUM(G5:G82)","v":3170.1000199317932},{"$f":"SUM(H4:H82)","v":6039.2000312805176}]
["Bezeichnung","ArtikelNr","Lieferant","Epreis","Vpreis","Bestand10","L Wert","V Wert","verkauft","eingekauft","Gewinn"]
["Div. Artikel (ohne Nachführung)",0,"diese Zeile nicht löschen",0,0,"D",0,123,0,0,0]
["T-Shirt rot, Langarm, Funktional","200","Unikat-Druck GmbH",12.5,35.700000762939453,80,1000,2856.0000610351563,41,121,951.2]
["T-Shirt rot, Kurzarm, Baumwolle","3601","Werbe-Shirt AG",12.699999809265137,17.5,60,761.9999885559082,1050,10,70,48]
["Schaal","34.223","Handweberei Tessanda\r\nPlaz d’Ora 14\r\n7536 Sta. Maria\r\nTel. +41 81 858 51 26\r\nallegra@tessanda.ch",33.200000762939453,44.799999237060547,39,1294.8000297546387,1747.1999702453613,21,60,243.6]
["Vereins Pin ","P1","Funny Pin GmbH",0.80000001192092896,2,100,80.000001192092896,200,100,200,120]
["Becher Keramik","55744","Werbeartikel AG",1.8500000238418579,3.5,18,33.300000429153442,63,17,35,28.05]

{"sheet":"Appell","index":5,"n_rows":6,"n_cols":51,"rows_kept":6,"cut":false,"hidden":false,"merged":[[1,0,1,2],[0,1,0,2]]}
[null,"Titel einfügen",null,"Tot",{"$f":"SUM(E4:E84)","v":2},0,0,0,0,0,0,0,0,0,0,0,0,0,0,0,0,0,0,0,0,0,0,0,0,0,0,0,0,0,0,0,0,0,0,0,0,0,0,0,0,0,0,0,0,0,0]
["Appell",null,null,{"$f":"SUM(E1:AY1)","v":2},"Probe"]
["Name","Vorname","Ort",null,"14.12."]
["Maler","Tobi","Thun",{"$f":"SUM(E4:BB4)","v":1},1]
["Meier","Hella","Rümlingen",{"$f":"SUM(E5:BB5)","v":0}]
["Müller","Felix","Lenzburg",{"$f":"SUM(E6:BB6)","v":1},1]

{"sheet":"V_Anlass","index":6,"n_rows":11,"n_cols":8,"rows_kept":11,"cut":false,"hidden":false,"merged":[]}
["Gönner Apéro","Status","angemeldet","bezahlt"," verbucht","Betrag","Belegnr","Zahlkonto"]
["AXA Winterthur Hauptagentur"]
["Festbauten"]
["Generalo Versicherungen"]
["Horst AG"]
["Baustein AG","bezahlt","02.01.2023","02.01.2023","",45,"","Kasse V"]
["Ammacher  Paul Thun"]
["Gönner Christine Bern Süd"]
["Gönner Kurt Lacomba"]
["Gönner Verena Rümlang"]
["Meissner Mathias Bern"]

{"sheet":"Aktive","index":7,"n_rows":7,"n_cols":19,"rows_kept":7,"cut":false,"hidden":false,"merged":[]}
[null,"Vorname","Telefon","Handy","Strasse","Plz","Ort","Geburtstag","E-Mail","Betrag","Zahldatum","Beitritt","Typ","Charge","Beruf","Ff7","Firma","Buchungstext","briefliche Anrede"]
["Küttel","Roger","+4144 799 19 52","","Werk-Strasse 12",8627,"Grüningen ZH","02.01.1993","",100,"","05.05.2018","Aktive","","Mechaniker","","Maschinenbau  AluAG ","Küttel Roger Grüningen ZH"]
["Maler","Tobi","0","081 233 456","Parade Platz 27",6800,"Thun","05.03.1987","schmied-tobi@hotmail.com",100,"14.12.2022","22.10.1999","Aktive","","Schweisser","","","Maler Tobi Thun","Sehr geehrter Herr "]
["Meier","Hella","044 444 44 44","078 456 67 89","Bahnhofstr. 4",4444,"Rümlingen","11.09.1993","exhella@world.com",100,"30.12.2022","2015","Aktive","","Service Assistent","","","Meier Hella Rümlingen","Guten Tag, Herr"]
["Müller","Felix","033 333 33 33","079 452 61 41","Anfangstr. 1",1111,"Lenzburg","04.10.1993","must.ant@world.com",100,"30.12.2022","2013","Aktive","","Keycount Manager","","","Müller Felix Lenzburg","Sehr geehrter Herr "]
["Küttel","Martin","+4133 822 10 6","","Waldeggstrasse 60",3800,"Interlaken","08.05.1949","",100,"30.12.2022","","Aktive","","","","","Küttel Martin Interlaken","Guten Tag, Herr"]
["Thomann","Stefan ","04761 74 65 8","","Gnattenbergstr. 17",27432,"Bremervörde","30.12.1988","",100,"30.12.2022","31.12.2022","Aktive","","Monteur","","","Thomann Stefan  Bremervörde","Sehr geehrter Herr "]

{"sheet":"Passive","index":8,"n_rows":4,"n_cols":19,"rows_kept":4,"cut":false,"hidden":false,"merged":[]}
["Nachname","Vorname","Telefon","Handy","Strasse","Plz","Ort","Geburtstag","E-Mail","Betrag","Zahldatum","Spende","Firma","FF5","FF6","FF7","FF8","Buchungstext","Anrede"]
["Muster","Michael","","","Halten 90",5522,"Bremgarten","11.09.1987","",20,"04.05.2022",20,"Geschäft","","","","","Muster Michael Bremgarten","Sehr geehrter Herr "]
["Muster","Sonja","033 432 56 79","","Heineweg 9",8210,"Wohlerauen","13.07.1988","sonjamus@wendy.com",20,"04.05.2022",20,"Passivmitglied","","","","","Muster Sonja Wohlerauen","Sehr geehrte Frau"]
["Muster","André","055 555 55 55","","Wegleiten 2",5507,"Tegerig","11.09.1990","zerzubi@world.com",20,"04.05.2022",10,"Passivmitglied","","","","","Muster André Tegerig","Sehr geehrter Herr "]

{"sheet":"Gönner","index":9,"n_rows":6,"n_cols":19,"rows_kept":6,"cut":false,"hidden":false,"merged":[]}
["Nachname","Vorname","Telefon","Handy","Strasse","Plz","Ort","Geb.","E-Mail","Betrag","Zahldatum","FF3","Firma","FF5","FF6","FF7","FF8","Buchungstext","Anrede"]
["Ammacher ","Paul","","055 345 21 84","",3600,"Thun",null,"",20,"","","","","","","","Ammacher  Paul Thun"]
["Gönner","Christine","031 999 99 99","","Loft",3888,"Bern Süd",null,"",40,"","","","","","","","Gönner Christine Bern Süd","Sehr geehrte Frau"]
["Gönner","Kurt","","078 232 52 45","Piazza Poulare 9",3990,"Lacomba","01.04.1975","koku@goole.com",20,"","","","","","","","Gönner Kurt Lacomba","Sehr geehrter Herr "]
["Gönner","Verena","","078 333 44 55","Hochhaus 23",4444,"Rümlang",null,"",40,"","","","","","","","Gönner Verena Rümlang","Sehr geehrte Frau"]
["Meissner","Siegfried","031 921 08 61","","Bodenacker 71",3065,"Bolligen","05.05.1988","meisssieg@wild.ch",20,"","","Halzum","","","","","Meissner Siegfried Bolligen","Sehr geehrter Herr "]

{"sheet":"Inserenten","index":10,"n_rows":4,"n_cols":19,"rows_kept":4,"cut":false,"hidden":false,"merged":[]}
["Nachname","Vorname","Telefon","Handy","Strasse","Plz","Ort","nu","E-Mail","Betrag","Zahldatum","Kontakt","Firma","Adresse","Rechnungsnr","Inserat Grösse","WWW","Buchungstext","Anrede"]
["Inserent","Sebastian","","","Centralstrasse 22",3800,"Interlaken",null,"",130,"","Holger","AXA Winterthur Hauptagentur","","","","","AXA Winterthur Hauptagentur Inserent Sebastian","Sehr geehrter Herr "]
["Inserent","Albert","045 241 23 33","","Dorfplatz 4",7453,"Nowhare","04.06.1993","",80,"","Peter","Festbauten","","","","","Festbauten Inserent Albert"]
["Inserent","Günther","","","Gygerweg 20",3700,"Spiez",null,"",240,"","Sabine","Generalo Versicherungen","","","","","Generalo Versicherungen Inserent Günther","Sehr geehrter Herr "]

{"sheet":"Sponsoren","index":11,"n_rows":3,"n_cols":19,"rows_kept":3,"cut":false,"hidden":false,"merged":[]}
["Nachname","Vorname","Telefon","Handy","Strasse","Plz","Ort","Geburtstag","E-Mail","Betrag","Zahldatum","Kontakt","Firma","Adresse","Vertrag","Rechnungsnr","WWW","Buchungstext","Anrede"]
["Sponsor","Flurin","0","","Mittlere Strasse 67",9566,"Wetterau",null,"",150,"","","Horst AG","","","SP 01","","Horst AG Sponsor Flurin","Sehr geehrter Herr"]
["Sponsor","Konstanze","","","Hauptstrasse 43",7453,"Salzbrunnen",null,"",150,"","Homepage","Baustein AG","","","SP_02","","Baustein AG Sponsor Konstanze","Sehr geehrter Herr "]

{"sheet":"Quittung","index":12,"n_rows":48,"n_cols":12,"rows_kept":48,"cut":false,"hidden":false,"merged":[[32,1,32,6],[1,4,1,6],[33,4,33,6],[0,1,0,6]]}
[null," Quittung: Musikgesellschaft X",null,null,null,null,null,null,"Korrex","Drucken","Tageskurse","MwSt"]
[null,"Nr:",20220010,null,"Betrag"]
["Währung:","CHF",null,null,null,"CHF",1200]
["Kurs",1,null,null,"MwSt",7.7,92.4]
[null,null,null,null,"Total",{"$f":"B3","v":"CHF"},1292.4000000000001]
["in Worten: ","Ein Tausend _Zwei Hundert _Zwei & Neunzig  Fr./  & Vierzig  Rp."]
[]
["von: ","Bucher Fritz Musikgesellschaft X"]
[]
["für: "]
[]
["Bez: ","Auftrittsgagen"]
[]
["Ort: ",3800,"Interlaken",null,null,null,"Betrag dankend erhalten"]
[null,null,null,"Visum:"]
[null,"Datum: ","16.12.2022"]
[]
[]
[]
[]
[]
[]
[]
[]
[]
[]
[]
[]
[]
[]
[]
[]
[" KOPIE "," Quittung: Musikgesellschaft X"]
[null,"Nr:",20220010,null,"Betrag"]
["Währung:","CHF",null,null,null,"CHF",1200]
["Kurs",1,null,null,"MwSt",7.7,92.4]
[null,null,null,null,"Total",{"$f":"B35","v":"CHF"},1292.4000000000001]
["in Worten: ","Ein Tausend _Zwei Hundert _Zwei & Neunzig  Fr./  & Vierzig  Rp."]
[]
["von: ","Bucher Fritz Musikgesellschaft X"]
[]
["für: "]
[]
["Bez: ","Auftrittsgagen"]
[]
["Ort: ",3800,"Interlaken",null,null,null,"Betrag dankend erhalten"]
[null,null,null,"Visum:"]
[null,"Datum: ","16.12.2022"]

{"sheet":"Val","index":13,"n_rows":24,"n_cols":30,"rows_kept":24,"cut":false,"hidden":true,"merged":[]}
["Briefliche Anrede","Diverses",null,"1x1/1",470,"Diverses","Vereindaten","Textbaustein Ausgaben (BauA) 8","Textbaustein Einahmen (BauE) 9","Textbaustein BauT","Debitor","Kreditor","Beiträge","KontoName","Anfangsbestand","IBAN","AppelTitel",null,"BeitragsTitel","Beiträge",null,null,null,"Währung","Kurs","MWS",null,"EU"]
["Sehr geehrte Damen und Herren","Interlaken",null,"1x1/2",240,"32","Musikgesellschaft X","Auftrag an","Anlassbeitrag","Kasse zu Bank","Debi-Rechnung","Kredi-Rechnung","100","Raiffeisen",2347.5,"Bank1","Ausflug",null,"Aktive",100,null,null,"Schweiz","CHF",1,7.7,null,"Belgien"]
["Sehr geehrte Frau","3800",null,"1x1/4",130,"35","01.01.2022-31.12.2022","Blumen","Auftrittsgage","Bank zu Kasse","Gage","Barzahlung","50","Kasse V",3778.7,"Kasse Vereinskassier","Fasnacht",null,"Junior",50,null,null,"Europa Union","EUR",0.99,20,null,"Deutschland"]
["Sehr geehrte Mitarbeiterin und Mitarbeiter",false,null,"1x1/8",70,"E:\\AA_Excel\\AE_Vebu\\Bilder\\LogoT","2022","Büromaterial","Einnahmen Verkaufsstand","Bank zu Post","Mitgliederbeitrag","Kreditkarte","0","Post",2745.8,"Swisscom","Kurs",null,"Neuling",20,null,null,"England","GBP",1.1499999999999999,2.5,null,"Estland"]
["Sehr geehrter Herr ","murmel",null,"3x1/8",210,"VeBu","Bucher Fritz","Car Reisen","Eintrittbillette","Post zu Bank","Postfinace","Spesen","0","Kasse Fest",559.4,"Kasse Fest","Probe",null,"Ehren",0,null,null,"USA","USD",0.93,3.7,null,"Finnland"]
["Guten Tag, Frau",4,null,null,null,"E:\\AA_Excel\\AE_Vebu\\BedAnl VeBu.pdf","Revisor Arnold","Dirigenten Honorar","Fanartikelverkauf","Post zu Kasse","Verkauf","Zinszahlung","0","Kasse PW",3000,"Kasse Probeweekend","Reise",null,"Frei",20,null,null,"Kanada","CAD",0.69,5,null,"Frankreich"]
["Guten Tag, Herr",null,null,null,null,"https://www.rates.bazg.admin.ch/home","Revisorin Bettina","Einkauszentrum","Fasnacht","Kasse zu Post","Bareinnahme",null,"0","Kasse Fa",1200,"Kasse Fanartikel","Sitzung",null,"Gast",0,null,null,"Australien","AUD",0.64,10,null,"Griechenland"]
["Hallo Frau",null,null,null,null,null," Revisor 3","Geschenke","Frondienst","Kasse zu Kasse","Spende",null,"20","Kasse U",10000,"Kasse Uniform","Training",null,"Passive",20,null,null,"Island","ISK",0.66,16,null,"Irland"]
["Hallo Herr",null,null,null,null,null," Revisor 4","Lokalmiete","Geburtstagsfest",null,"Ertrag",null,null,"UBS",10830,"Bank2","Treffen",null,null,null,null,null,"Schweden","SEK",0.16,25,null,"Italien"]
["Liebe Frau",null,null,null,null,null,"01.01.2022","Medien","Gönner Spende",null,"Zinseinahme",null,"Startseite",null,null,null,"Versammlung",null,null,null,null,null,"Norwegen","NOK",9.4E-2,25,null,"Lettland"]
["Liebe Kolleginnen und Kollegen",null,null,null,null,null,"31.12.2022","Mobiliar","Spende ohne Namensangabe",null,null,null,"Journal",null,null,null,null,null,null,null,null,null,null,null,null,null,null,"Litauen"]
[null,null,null,null,null,null,"2017-05-05","Noteneinkauf","Ticketverkauf",null,null,null,null,null,null,null,null,null,null,null,null,null,null,null,null,null,null,"Luxemburg,"]
[null,null,null,null,null,null,null,"Prämie","Vereinsreise Anzahlung",null,null,null,"Anlass",null,null,null,null,null,null,null,null,null,null,null,null,null,null,"Malta"]
[null,null,null,null,null,null,null,"Reperatur Instrumente","gesammelte Spenden",null,null,null,"45",null,null,null,null,null,null,null,null,null,null,null,null,null,null,"Niederlande, "]
[null,null,null,null,null,null,null,"Shop","unbekannter Spender",null,null,null,"Gönner Apéro",null,null,null,null,null,null,null,null,null,null,null,null,null,null,"Oesterreich"]
[null,null,null,null,null,null,null,"Transport","Zinsen Bank",null,null,null,null,null,null,null,null,null,null,null,null,null,null,null,null,null,null,"Portugal"]
[null,null,null,null,null,null,null,"Vereinsbeiträge",null,null,null,null,null,null,null,null,null,null,null,null,null,null,null,null,null,null,null,"Slowakei"]
[null,null,null,null,null,null,null,"Verpflegung",null,null,null,null,null,null,null,null,null,null,null,null,null,null,null,null,null,null,null,"Slowenien"]
[null,null,null,null,null,null,null,"Versicherungen",null,null,null,null,null,null,null,null,null,null,null,null,null,null,null,null,null,null,null,"Spanien"]
[null,null,null,null,null,null,null,"Wareneinkauf",null,null,null,null,null,null,null,null,null,null,null,null,null,null,null,null,null,null,null,"Zypern"]
[null,null,null,null,null,"C:\\Users\\Martin\\Documents\\AA_Vebu",null,"Werbegeschenke"]
[null,null,null,null,null,"C:\\Users\\Martin\\Documents\\AA_Vebu\\Bilder\\Logo.bmp"]
[null,null,null,null,null,"C:\\Users\\Martin\\Documents\\AA_Vebu\\BedAnl VeBu.pdf"]
[null,null,null,null,null,null,null,null,null,null,null,null,13,14,15,16,null,18,19,20,21,22,23,24,25,26,27,28,29,30]

{"sheet":"Color","index":14,"n_rows":64,"n_cols":13,"rows_kept":64,"cut":false,"hidden":true,"merged":[]}
["Farbname","FarbIdx","FarbHex (BGR)","FarbRGB","FarbeLong",null,null,null,null,"Testfarbe",null,13395456,"Dodgerblue"]
["White",2,"&HFFFFFF","RGB(255, 255, 255)",16777215]
["Whitesmoke",2,"&HF5F5F5","RGB(245,245,245)",16119285]
["Gainsboro",15,"&HDCDCDC ","RGB(220,220,229) ",14474460]
["Silver ",15,"&HC0C0C0","RGB(192, 192, 192)",12632256]
["Almond",19,"&HEFDECD","RGB(239,222,205)",13491951]
["Yellow ",6,"&H00FFFF","RGB(255,255,000)",65535]
["Ivory",2,"&HE0FFFF","RGB(255, 255, 240)",15794175]
["Cornsilk",19,"&HDCF8FF","RGB(255,248,220)",15071487]
["Khaki",36,"&H8CE6F0","RGB(240,230,140)",9234160]
["Coldenrod",36,"&HAAE8EE","RGB(238,232,107)",7071982]
["Bisque",19,"&HC4E4FF","RGB(255, 228, 196)",12903679]
["DarkGreen",51,"&H003300","RGB(0.51.0)",13056,"Farbe Budget Haupttitel Einnahmen"]
["Green",10,"&H008000","RGB(0.255,00)",32768,"Farbe Budget Untertitel Einnahmen"]
["Gold",44,"&H00D7FF","RGB(255,215,000)",55295]
["Bright Green",4,"&H00FF00","RGB(000,255,000)",65280]
["Chartreuse",43,"&H00FF7F","RGB(127,255,0",65407]
["Greenyellow",43,"&H2FFFAD","RGB(173,255,47)",3145645]
["Light Green",48,"&H33FF99","RGB(144,238,144)",9498256]
["Springgreen",4,"&H7FFF00","RGB(0, 255, 127)",8388352]
["LightSeagreen",35,"&HD3FF85","RGB(133, 255, 211)",13893509]
["Pale Green",48,"&H98FB98","RGB(152,251,152)",10025880]
["Paleturqoise",20,"&HEEEEAF","RGB(175,238,238)",15658671]
["Aquamarin",35,"&HD4FF7F","RGB(127, 255, 212)",13959039]
["Light Green",35,"&HCCFFCC","RGB(204,255,204",13434828,"Farbe Budgetposition Einnahmen"]
["Blue",5,"&HFF0000","RGB(0,0255",16711680]
["Powderblue",37,"&HE6E0B0","RGB(176,224,230)",15130800]
["Light Blue",37,"&HEED7BD","RGB(173,216,230)",15128749]
["SteelBlue",15,"&HFFCCCC","RGB(176, 196, 222)",14599344]
["Pale Blue",37,"&HFFCC99","RGB(153, 204, 255)",16764057]
["LightSkyblue",37,"&HFF9999","RGB(135, 206, 250)",16436871]
["Control",23,"&HD77800","RGB(000,120,215)",14120960]
["Dodgerblue",41,"&HCC6600","RGB(030,144,255)",16748574]
["Cornflower",17,"&HED9564","RGB(100,149,237)",15570276]
["Royalblue",41,"&HE16841","RGB(65,105,225",14772545]
["Bronce",15,"&H66D9FF","RGB(255,217,102)",13082801]
["Lavender",2,"&HFF99CC","RBG(230, 230, 250)",16443110]
["Cyan",8,"&HFFFF00","RGB(000, 255, 255)",16776960]
["Light Cyan",20,"&HFFFFCC","RGB(204, 255, 255)",16777164]
["Aqua",42,"&HCCCC33","RGB(51,204,204)",13421619]
["Teal",14,"&H808000","RGB(0,128,128)",8421376]
["Tan",15,"&H8CB4D2","RGB(210, 180, 140)",9221330]
["Red",3,"&H0000FF","RGB(255,0,0)",255]
["Tomato",46,"&H4763FF","RGB(255,99,71)",4676351]
["DarkRed",9,"&H000080","RGB(128,0,0)",128,"Farbe Budget Haupttitel Ausgaben"]
["Purpur",3,"&H3C14DC","RGB(220,20,60",3937500]
["Mangenta",7,"&HFF00FF","RGB(255,000 255)",16711935]
["Hotpink",38,"&HB469FF","RGB(255,105,180",11823615]
["Rose",38,"&HCC99FF","RGB(255, 153, 204)",13408767]
["LightPink",38,"&HC1B6FF","RGB(255,182,193)",12695295]
["MistyRose",19,"&HE1E4FF","RGB(255,228,225)",14804223]
["Orange",46,"&H0066FF","RGB(255, 102,0)",26367,"Farbe Budget Untertitel Ausgaben"]
["Coral",22,"&H7AA0FF","RGB(255, 127, 80)",5275647]
["Peru",45,"&H0099FF","RGB(255,153,0)",39423]
["LightSalmon",22,"&HA7A9FF","RGB(255,160,122)",8036607]
["Tan",40,"&H99CCFF","RGB(255,204,153)",10079487,"Farbe BudgetPosition Ausgaben"]
["Orchid",38,"&HD670DA","RGB(218,112,214)",14053594]
["Plum",38,"&HDDA0DD","RGB(221,160,221)",14524637]
["Thistle",15,"&HD8BFD8","RGB(216,191,216)",14204888]
["Rot Akz 2",15,"&HB8B8E6","RGB(230,184,184)",12105958]
["NavajoWhite",40,"&HADDEFF","RGB(255,222,173)",11394815]
["Wheat",40,"&HB3DEF5","RGB(245,222,179)",11788021]
["Menue",24,null,"RGB(197,217,241)",15849925]
[null,-4142,null,null,16777215]